bitfinex/quotes_ETHUSD_20250923
["timestamp","ask_amount","ask_price","bid_price","bid_amount"]
[1758637551376,4.32882064,4192.7,4192.6,0.6937]
[1758637551583,4.46204449,4192.7,4192.6,0.6937]
[1758637551868,4.97311317,4192.7,4192.6,0.6937]
[1758637552462,0.35504449,4192.7,4192.6,0.6937]
[1758637552663,7.46204449,4192.7,4192.6,0.6937]
[1758637552862,3.86611317,4192.7,4192.6,0.6937]
[1758637553666,6.25121107,4192.7,4192.6,0.004]
[1758637553893,3.86611317,4192.7,4192.6,0.6937]
[1758637554302,3.86611317,4192.7,4192.6,0.004]
[1758637554805,3.86611317,4192.7,4192.6,0.6937]
[1758637555472,3.86651478,4192.7,4192.6,0.6937]
[1758637556004,3.86651478,4192.7,4192.6,0.2369]
[1758637556909,3.86651478,4192.7,4192.6,0.6937]
[1758637557107,3.86654181,4192.7,4192.6,0.6937]
[1758637557609,3.86668275,4192.7,4192.6,0.6937]
[1758637557978,3.86668275,4192.7,4192.6,15.1937]
[1758637558504,3.86669995,4192.7,4192.6,15.1937]
[1758637559282,3.86589995,4192.7,4192.6,15.1937]
[1758637560314,6.25099785,4192.7,4192.6,15.1937]
[1758637560522,3.86589995,4192.7,4192.6,14.504]
[1758637561216,3.86590257,4192.7,4192.6,14.7369]
[1758637561510,3.8659002,4192.7,4192.6,14.7369]
[1758637561712,3.8659002,4192.7,4192.6,15.1937]
[1758637562627,0.35563152,4192.7,4192.6,19.33675218]
[1758637562802,0.13338224,4192.7,4192.6,19.45595218]
[1758637563683,2.697,4193.2,4192.7,2.38508018]
[1758637563882,0.13336545,4193.1,4192.8,0.6897]
[1758637564109,0.13336545,4193.1,4192.6,18.7661965]
[1758637564110,4.23736545,4193.0,4192.6,16.38109739]
[1758637564386,0.13332145,4192.9,4192.8,0.4568]
[1758637564587,0.13332145,4192.9,4192.8,0.6897]
[1758637567422,0.13332145,4192.9,4192.7,2.31032243]
[1758637567607,0.13332145,4192.8,4192.7,3.00002243]
[1758637567780,0.13332145,4192.8,4192.7,0.6897]
[1758637568186,0.13332145,4192.8,4192.7,0.2329]
[1758637568381,0.13332145,4192.8,4192.6,14.6232]
[1758637568592,0.13332145,4192.7,4192.6,14.6232]
[1758637569099,0.13332145,4192.7,4192.6,14.8561]
[1758637569686,0.13332145,4192.7,4192.6,15.23636119]
[1758637569892,0.13332145,4192.7,4192.6,15.69316119]
[1758637570717,0.13332145,4192.7,4192.6,18.07831598]
[1758637571086,0.13332145,4192.7,4192.6,22.18131598]
[1758637572326,0.13332145,4192.7,4192.6,19.79616119]
[1758637572505,0.13332145,4192.7,4192.6,19.10646119]
[1758637572708,0.13332145,4192.7,4192.6,22.20271598]
[1758637572906,0.13332145,4192.7,4192.6,15.25246119]
[1758637573638,0.13332145,4192.7,4192.6,15.71456119]
[1758637573803,0.13432145,4192.7,4192.6,15.71456119]
[1758637575739,0.13432145,4192.7,4192.6,15.00346119]
[1758637575942,0.13432145,4192.7,4192.6,14.6232]
[1758637576431,0.35697263,4192.7,4192.6,14.6232]
[1758637576820,0.13432145,4192.7,4192.6,14.8722]
[1758637577338,0.35715673,4192.7,4192.6,14.8722]
[1758637577643,0.13432145,4192.7,4192.6,17.23162]
[1758637578041,0.13432145,4192.7,4192.6,16.76952]
[1758637578213,0.35718415,4192.7,4192.6,14.6232]
[1758637578639,0.35718415,4192.7,4192.6,14.8722]
[1758637579047,3.25576038,4192.7,4192.6,14.504]
[1758637579350,0.87066248,4192.7,4192.6,14.504]
[1758637583047,3.25576038,4192.7,4192.6,14.504]
[1758637583250,3.48296038,4192.7,4192.6,14.504]
[1758637583450,3.91086038,4192.7,4192.6,14.504]
[1758637583947,3.91086038,4192.7,4192.6,0.004]
[1758637584138,3.68286038,4192.7,4192.6,0.004]
[1758637584321,6.91006038,4192.7,4192.6,0.004]
[1758637584825,16.48619698,4192.7,4192.6,0.004]
[1758637585235,16.13081283,4192.7,4192.6,0.004]
[1758637585960,18.98581283,4192.7,4192.6,0.004]
[1758637586376,20.06530451,4192.7,4192.6,0.004]
[1758637586733,19.84220667,4192.7,4192.6,0.004]
[1758637586929,28.56194943,4192.7,4192.6,0.004]
[1758637587263,20.26372247,4192.7,4192.6,0.004]
[1758637587464,18.98581283,4192.7,4192.6,0.004]
[1758637587830,29.83985907,4192.7,4192.6,0.004]
[1758637588075,28.56194943,4192.7,4192.6,0.004]
[1758637588364,2.38584603,4191.4,4191.1,0.02]
[1758637588564,3.0,4191.2,4191.1,0.269]
[1758637588769,5.89942984,4191.2,4191.1,0.02]
[1758637588936,3.51347833,4191.2,4191.1,0.4821]
[1758637589463,3.51347833,4191.2,4191.1,0.7311]
[1758637589933,4.099,4191.4,4191.1,0.7311]
[1758637590130,0.22310834,4191.3,4191.2,0.7111]
[1758637590334,0.22310834,4191.3,4191.2,0.4621]
[1758637591035,0.22310834,4191.3,4191.2,3.09705151]
[1758637593545,4.099,4191.5,4191.3,2.38589048]
[1758637593736,0.22262172,4191.4,4191.3,2.63489459]
[1758637594181,4.099,4191.5,4191.3,3.09699459]
[1758637594564,0.22257869,4191.4,4191.3,3.09699459]
[1758637594890,0.22257869,4191.4,4191.3,0.4621]
[1758637595118,2.064,4192.3,4191.3,2.38589459]
[1758637595250,4.3205642,4192.2,4192.0,2.38547914]
[1758637595451,0.2225642,4192.1,4192.0,2.38547914]
[1758637596184,0.35607069,4192.1,4192.0,3.09659618]
[1758637597086,0.35607069,4192.1,4192.0,0.249]
[1758637597251,0.35607069,4192.1,4191.6,0.7111]
[1758637597460,0.13350649,4192.0,4191.8,2.3855945]
[1758637597669,0.13350649,4191.9,4191.8,2.8476945]
[1758637597988,0.13350649,4191.9,4191.7,2.38565101]
[1758637598186,13.6741366,4192.2,4191.8,0.5813]
[1758637598385,0.3561567,4192.1,4191.9,0.249]
[1758637598684,2.74169031,4192.0,4191.8,0.1192]
[1758637598886,9.9322933,4191.9,4191.5,0.1192]
[1758637599053,0.3561567,4191.8,4191.5,0.1192]
[1758637599255,0.13355876,4191.7,4191.5,0.3682]
[1758637599455,0.13355876,4191.6,4191.5,0.3682]
[1758637599690,0.13355876,4191.6,4191.5,0.1192]
[1758637600385,0.13355876,4191.6,4191.5,0.3682]
[1758637600795,9.70969536,4191.6,4191.5,0.1192]
[1758637600969,9.70969536,4191.6,4191.3,0.1192]
[1758637600970,9.93222698,4191.6,4191.3,0.1192]
[1758637601292,0.35609038,4191.5,4191.3,0.1192]
[1758637601592,0.13355876,4191.4,4191.3,0.1192]
[1758637602994,0.13355876,4191.4,4191.3,0.3596]
[1758637603495,0.13355876,4191.4,4191.3,0.794]
[1758637603653,0.13355876,4191.4,4191.3,0.3596]
[1758637603856,0.13355876,4191.4,4191.3,0.1192]
[1758637604493,0.13355876,4191.4,4191.1,0.024]
[1758637604675,4.096,4191.7,4191.3,0.794]
[1758637604870,0.35613737,4191.6,4191.4,0.2404]
[1758637605067,0.35613737,4191.5,4191.3,0.1192]
[1758637605284,9.93227397,4191.4,4191.1,0.04786008]
[1758637605505,0.13355151,4191.3,4191.1,0.024]
[1758637605693,0.13355151,4191.2,4191.1,0.48226008]
[1758637606201,0.13355151,4191.2,4191.1,0.72266008]
[1758637606402,0.13355151,4191.2,4191.1,0.28826008]
[1758637606592,0.13355151,4191.2,4191.1,3.04896651]
[1758637606774,0.13355151,4191.2,4191.1,1.09735807]
[1758637606970,0.13355151,4191.2,4191.1,0.1432]
[1758637607508,0.13355151,4191.2,4191.1,0.3836]
[1758637608180,0.13355151,4191.2,4191.1,0.1432]
[1758637608708,0.13355151,4191.2,4191.1,0.3836]
[1758637609211,0.13275151,4191.2,4191.1,0.28826008]
[1758637609410,0.13275151,4191.2,4191.1,0.6988]
[1758637609904,0.13275151,4191.2,4191.1,0.72266008]
[1758637610103,0.35541858,4191.2,4191.1,0.024]
[1758637610701,0.35541858,4191.2,4191.1,2.41000844]
[1758637610875,0.35541858,4191.2,4191.1,0.2644]
[1758637611609,0.35541858,4191.2,4191.1,2.76960844]
[1758637611911,0.35541858,4191.2,4191.1,0.818]
[1758637612297,0.35541858,4191.2,4191.1,0.3836]
[1758637612711,0.35541858,4191.2,4191.1,2.76960844]
[1758637612884,0.35541858,4191.2,4191.1,3.20400844]
[1758637613998,0.35541858,4191.2,4191.1,2.52920844]
[1758637614203,0.35541858,4191.2,4191.1,3.20400844]
[1758637614581,0.22266707,4191.2,4191.1,3.20400844]
[1758637614916,0.2231483,4191.2,4191.1,0.818]
[1758637615311,0.2231483,4191.2,4191.1,3.20400844]
[1758637616384,0.2231483,4191.2,4191.1,3.52440928]
[1758637617892,0.2231483,4191.2,4191.1,18.02440928]
[1758637619100,0.2231483,4191.2,4191.1,22.11840928]
[1758637619419,0.2231483,4191.2,4191.1,14.6432]
[1758637619788,0.6746483,4191.2,4191.1,14.524]
[1758637620010,0.2231483,4191.2,4191.1,14.524]
[1758637620935,0.2231483,4191.2,4191.1,14.7644]
[1758637621442,0.35704766,4191.2,4191.1,14.7644]
[1758637621600,3.50253709,4191.2,4191.1,14.524]
[1758637621805,1.56808558,4191.2,4191.1,14.524]
[1758637622507,0.87088558,4191.2,4191.1,14.524]
[1758637622707,0.87088558,4191.2,4191.1,0.024]
[1758637623317,4.96388558,4191.2,4191.1,14.524]
[1758637623808,4.96364935,4191.2,4191.1,14.524]
[1758637624005,0.35704766,4191.2,4191.1,14.524]
[1758637624228,0.35704766,4191.2,4191.1,17.82916656]
[1758637624439,0.35704766,4191.2,4191.1,15.56235812]
[1758637624609,0.35704766,4191.2,4191.1,17.94836656]
[1758637624809,0.35690782,4191.2,4191.1,17.94836656]
[1758637625632,0.35690782,4191.2,4191.1,15.56235812]
[1758637626233,0.35690782,4191.2,4191.1,17.94836656]
[1758637626432,0.35690782,4191.2,4191.1,18.38276656]
[1758637626740,0.35682514,4191.2,4191.1,15.99675812]
[1758637627038,0.35682514,4191.2,4191.1,15.32195812]
[1758637627339,0.35682514,4191.2,4191.1,17.02920844]
[1758637627542,0.35682514,4191.2,4191.1,14.6432]
[1758637627760,0.35682514,4191.2,4191.1,14.8836]
[1758637627969,0.35682514,4191.2,4191.1,17.26960844]
[1758637628260,0.35682514,4191.2,4191.1,21.79600844]
[1758637628660,0.35682514,4191.2,4191.1,22.80725042]
[1758637629535,0.35696871,4191.2,4191.1,20.42124198]
[1758637629731,0.35696871,4191.2,4191.1,19.98684198]
[1758637629932,0.87107061,4191.2,4191.1,14.6432]
[1758637631757,1.53877061,4191.2,4191.1,0.024]
[1758637632070,0.87107061,4191.2,4191.1,0.024]
[1758637633171,1.53877061,4191.2,4191.1,0.024]
[1758637633471,1.53880431,4191.2,4191.1,0.024]
[1758637633975,0.87110431,4191.2,4191.1,0.024]
[1758637634168,1.53800431,4191.2,4191.1,0.024]
[1758637634466,1.31565228,4191.2,4191.1,0.024]
[1758637634768,1.08555228,4191.2,4191.1,0.024]
[1758637635173,0.64795228,4191.2,4191.1,0.024]
[1758637635548,0.64795228,4191.2,4191.1,2.80622714]
[1758637635753,0.64797427,4191.2,4191.1,2.80622714]
[1758637635953,0.64797427,4191.2,4191.1,2.11082714]
[1758637636361,0.64797427,4191.2,4191.1,0.024]
[1758637636990,3.70162578,4191.2,4191.1,0.024]
[1758637637368,1.31567427,4191.2,4191.1,0.024]
[1758637637680,0.64797427,4191.2,4191.1,0.024]
[1758637637862,0.64797427,4191.2,4191.1,14.524]
[1758637638058,0.6479507,4191.2,4191.1,14.524]
[1758637639883,3.70160221,4191.2,4191.1,14.524]
[1758637640089,1.3156507,4191.2,4191.1,14.524]
[1758637640252,0.6479507,4191.2,4191.1,14.524]
[1758637640455,0.64794934,4191.2,4191.1,14.524]
[1758637640974,0.6478313,4191.2,4191.1,14.524]
[1758637644273,4.7368313,4191.2,4191.1,14.524]
[1758637644873,4.7368313,4191.2,4191.1,14.759]
[1758637645091,4.7368313,4191.2,4191.1,14.524]
[1758637645309,0.6478313,4191.2,4191.1,14.9844]
[1758637645603,0.6478313,4191.2,4191.1,20.77300871]
[1758637645802,0.6478313,4191.2,4191.1,23.15901715]
[1758637646173,0.87094419,4191.2,4191.1,20.77300871]
[1758637646356,0.87094419,4191.2,4191.1,23.15901715]
[1758637646552,0.87094419,4191.2,4191.1,20.77300871]
[1758637646953,0.87094419,4191.2,4191.1,23.15901715]
[1758637647591,0.87094419,4191.2,4191.1,20.77300871]
[1758637647794,0.35696053,4191.2,4191.1,20.77300871]
[1758637647963,0.35696053,4191.2,4191.1,19.07001715]
[1758637648158,0.35696053,4191.2,4191.1,23.15801715]
[1758637648690,0.35800058,4191.2,4191.1,15.98860871]
[1758637648893,0.35800058,4191.2,4191.1,20.07660871]
[1758637649393,0.35800058,4191.2,4191.1,22.69761715]
[1758637649565,0.35800058,4191.2,4191.1,23.15801715]
[1758637650072,0.35800058,4191.2,4191.1,16.68400871]
[1758637650276,0.35800058,4191.2,4191.1,20.77200871]
[1758637650480,0.35800058,4191.2,4191.1,23.15801715]
[1758637651177,0.35800058,4191.2,4191.1,23.15701715]
[1758637652405,0.35800058,4191.2,4191.1,23.27621715]
[1758637652906,0.001,4191.2,4191.1,23.27621715]
[1758637654309,0.3579029,4191.2,4191.1,14.6432]
[1758637654482,0.3579029,4191.2,4191.1,18.7292]
[1758637655498,0.35786543,4191.2,4191.1,18.7292]
[1758637656806,0.35786543,4191.2,4191.1,21.11520844]
[1758637657006,0.35786543,4191.2,4191.1,21.97900221]
[1758637657210,0.35786543,4191.2,4191.1,19.82799377]
[1758637657611,0.35786543,4191.2,4191.1,19.59299377]
[1758637657787,0.35786543,4191.2,4191.1,18.7292]
[1758637658190,0.35786543,4191.2,4191.1,21.11520844]
[1758637658415,0.35786543,4191.2,4191.1,21.69140844]
[1758637658626,0.001,4191.2,4191.1,17.26420844]
[1758637658829,0.35793843,4191.2,4191.1,21.57460844]
[1758637659116,0.35713843,4191.2,4191.1,23.96706928]
[1758637659321,0.35713843,4191.2,4191.1,20.88566084]
[1758637659491,0.35713843,4191.2,4191.1,14.6432]
[1758637659697,0.35713843,4191.2,4191.1,18.7282]
[1758637660280,0.35713843,4191.2,4191.1,14.6432]
[1758637660481,0.35713843,4191.2,4191.1,18.7282]
[1758637663389,0.35713843,4191.2,4191.1,19.1899]
[1758637663581,0.35713843,4191.2,4191.1,23.84400906]
[1758637663816,0.35713843,4191.2,4191.1,23.96320906]
[1758637664320,0.35718531,4191.2,4191.1,19.87820906]
[1758637664488,0.35718531,4191.2,4191.1,23.96220906]
[1758637665018,0.35718531,4191.2,4191.1,20.88480062]
[1758637665330,0.35718531,4191.2,4191.1,23.50050906]
[1758637665629,0.35718531,4191.2,4191.1,20.88480062]
[1758637666935,0.35718531,4191.2,4191.1,14.6432]
[1758637667135,1.31796773,4191.2,4191.1,14.524]
[1758637667341,1.31796773,4191.2,4191.1,18.608]
[1758637667342,1.55986773,4191.2,4191.1,18.608]
[1758637667508,0.87176773,4191.2,4191.1,18.608]
[1758637667836,1.31796773,4191.2,4191.1,0.024]
[1758637668040,1.55986773,4191.2,4191.1,0.024]
[1758637668703,0.87176773,4191.2,4191.1,0.024]
[1758637671837,0.87176773,4191.2,4191.1,14.524]
[1758637673242,0.87176773,4191.2,4191.1,15.2154]
[1758637673636,0.87176773,4191.2,4191.1,14.7537]
[1758637674146,0.87209885,4191.2,4191.1,14.7537]
[1758637674544,0.87209885,4191.2,4191.1,14.524]
[1758637675043,1.11399885,4191.2,4191.1,4.106]
[1758637675245,3.94615036,4191.2,4191.1,0.024]
[1758637675453,1.56019885,4191.2,4191.1,0.024]
[1758637675831,1.11399885,4191.2,4191.1,0.024]
[1758637676031,4.58883272,4191.2,4191.1,0.024]
[1758637676258,3.94615036,4191.2,4191.1,0.024]
[1758637676464,4.06535036,4191.2,4191.1,0.024]
[1758637677359,7.06535036,4191.2,4191.1,0.024]
[1758637677529,14.85981749,4191.2,4191.1,0.024]
[1758637677734,14.85981749,4191.2,4190.1,1e-08]
[1758637677735,0.792,4190.8,4190.1,1e-08]
[1758637677934,11.49380992,4190.2,4190.1,1e-08]
[1758637678233,14.75222969,4190.2,4190.1,1e-08]
[1758637678552,15.44032969,4190.2,4190.1,1e-08]
[1758637679221,3.94651977,4190.2,4190.1,1e-08]
[1758637679476,15.44032969,4190.2,4190.1,1e-08]
[1758637681430,15.43992587,4190.2,4190.1,1e-08]
[1758637681643,15.4396343,4190.2,4190.1,1e-08]
[1758637682544,14.9934343,4190.2,4190.1,1e-08]
[1758637683559,14.7515343,4190.2,4190.1,1e-08]
[1758637683725,0.87120346,4190.2,4190.1,1e-08]
[1758637683931,11.85043096,4190.2,4190.1,1e-08]
[1758637684149,14.7507343,4190.2,4190.1,1e-08]
[1758637684834,12.36421338,4190.2,4190.1,1e-08]
[1758637685019,14.7507343,4190.2,4190.1,1e-08]
[1758637685219,14.74881062,4190.2,4190.1,1e-08]
[1758637685432,14.99071062,4190.2,4190.1,1e-08]
[1758637685860,14.99071062,4190.2,4190.1,0.00400001]
[1758637686060,12.3622897,4190.2,4190.1,0.00400001]
[1758637686251,11.84963096,4190.2,4190.1,0.00400001]
[1758637686567,17.23615188,4190.2,4190.1,0.00400001]
[1758637686772,17.9906418,4190.2,4190.1,0.00400001]
[1758637687068,17.7487418,4190.2,4190.1,0.00400001]
[1758637687370,21.31615188,4190.2,4190.1,0.00400001]
[1758637687663,21.76235188,4190.2,4190.1,0.00400001]
[1758637687876,18.92963096,4190.2,4190.1,0.00400001]
[1758637688193,3.35582104,4190.2,4190.1,0.00400001]
[1758637688480,7.43582104,4190.2,4190.1,0.69540001]
[1758637688644,0.35582104,4190.2,4190.1,0.69540001]
[1758637688847,0.13297921,4190.2,4190.1,0.69540001]
[1758637689200,0.13297921,4190.2,4190.1,0.81460001]
[1758637689475,0.13297921,4190.2,4190.1,0.00400001]
[1758637690087,0.13297921,4190.2,4190.1,0.23370001]
[1758637690703,0.13297921,4190.2,4190.1,0.69540001]
[1758637691702,0.13297921,4190.2,4190.1,4.85449935]
[1758637691870,4.08,4190.7,4190.1,4.97369935]
[1758637692070,0.2226089,4190.6,4190.2,0.2415]
[1758637692268,0.2226089,4190.6,4190.1,4.66390001]
[1758637692269,2.38650874,4190.3,4190.1,0.00400001]
[1758637692608,4.079,4190.3,4190.1,0.00400001]
[1758637692810,11.49380992,4191.1,4190.2,0.6875]
[1758637692971,7.81486616,4191.0,4190.3,0.2415]
[1758637693307,2.38618189,4190.8,4190.3,0.2415]
[1758637693463,3.0,4190.6,4190.3,0.2415]
[1758637693786,4.079,4190.7,4190.4,0.6875]
[1758637694006,4.079,4190.7,4190.5,0.6875]
[1758637694170,7.079,4190.7,4190.6,0.6875]
[1758637694357,7.30178008,4190.7,4190.6,0.6875]
[1758637694705,7.30178008,4190.7,4190.6,0.2415]
[1758637694706,3.22278008,4190.7,4190.6,0.2415]
[1758637694908,3.22278008,4190.7,4190.6,0.6875]
[1758637695057,3.22279609,4190.7,4190.6,0.6875]
[1758637695500,0.0002,4191.2,4190.8,2.38615361]
[1758637695703,0.22287391,4191.1,4190.9,0.6875]
[1758637695857,0.22287391,4191.1,4191.0,15.1875]
[1758637696059,0.35660511,4191.1,4191.0,15.1875]
[1758637696706,0.35660511,4191.1,4191.0,17.57356537]
[1758637696871,0.1337312,4191.1,4191.0,15.1875]
[1758637697463,0.13371721,4191.1,4191.0,15.1875]
[1758637697660,0.13371721,4191.1,4191.0,19.73883746]
[1758637697886,0.13371721,4191.1,4191.0,17.35277209]
[1758637698315,0.13371721,4191.1,4191.0,21.43077209]
[1758637698603,0.13371721,4191.1,4191.0,23.81683746]
[1758637698810,0.0002,4191.2,4191.1,2.38600844]
[1758637698978,0.13397821,4191.2,4191.1,5.51634604]
[1758637700182,0.13397821,4191.2,4191.1,3.1303376]
[1758637700582,0.13397821,4191.2,4191.1,0.6875]
[1758637701194,0.13397821,4191.2,4191.1,3.07350844]
[1758637702094,0.0002,4191.2,4191.1,3.07350844]
[1758637702300,0.0002,4191.2,4191.1,3.09736852]
[1758637702493,0.0002,4191.2,4191.1,17.57350844]
[1758637702903,0.0002,4191.2,4191.1,20.09647137]
[1758637706905,0.0002,4191.2,4191.1,24.17247137]
[1758637707081,0.0002,4191.2,4191.1,20.09647137]
[1758637707414,0.0002,4191.2,4191.1,24.17247137]
[1758637709213,0.0004,4191.7,4191.5,2.38577519]
[1758637709409,0.0004,4191.7,4191.6,4.076]
[1758637709612,0.0004,4191.7,4191.6,6.58092382]
[1758637710322,0.0004,4191.7,4191.6,6.82242382]
[1758637710502,0.0004,4191.7,4191.6,7.63897699]
[1758637710830,0.0004,4191.7,4191.6,7.51977699]
[1758637711386,0.0004,4191.7,4191.6,22.01977699]
[1758637711789,9.57739015,4191.7,4191.6,14.87055317]
[1758637712035,9.57739015,4191.7,4191.6,18.575]
[1758637712322,0.0004,4191.7,4191.6,18.575]
[1758637712498,0.0004,4191.7,4191.6,20.96072382]
[1758637712900,0.0004,4191.7,4191.6,21.20222382]
[1758637713228,0.0004,4191.7,4191.6,20.96072382]
[1758637713911,0.0004,4191.7,4191.6,23.36412933]
[1758637714588,0.0004,4191.7,4191.6,23.60562933]
[1758637715027,0.0004,4191.7,4191.6,23.36412933]
[1758637715648,0.0004,4191.7,4191.6,23.60562933]
[1758637715847,0.0004,4191.7,4191.6,24.05162933]
[1758637717309,0.0004,4191.7,4191.6,24.05062933]
[1758637718108,0.0004,4191.7,4191.6,23.36312933]
[1758637718556,0.0004,4191.7,4191.6,14.5]
[1758637718716,0.6709,4191.7,4191.6,18.574]
[1758637719955,0.6709,4191.7,4191.6,20.95972382]
[1758637720156,0.0004,4191.7,4191.6,20.95972382]
[1758637722951,0.0004,4191.7,4191.6,23.45244795]
[1758637724721,0.0004,4191.7,4191.6,24.15654795]
[1758637725155,0.0004,4191.7,4191.6,23.68944795]
[1758637726438,0.0004,4191.7,4191.6,24.15654795]
[1758637728129,0.0004,4191.7,4191.6,20.08354795]
[1758637728450,0.0004,4191.7,4191.6,26.21954795]
[1758637729740,0.0004,4191.7,4191.6,19.37944795]
[1758637730059,0.0004,4191.7,4191.6,23.45144795]
[1758637730260,0.0004,4191.7,4191.6,23.68844795]
[1758637730835,0.0004,4191.7,4191.6,23.45144795]
[1758637731664,0.0004,4191.7,4191.6,21.06472413]
[1758637731828,0.0004,4191.7,4191.6,23.45044795]
[1758637734053,0.4492,4192.1,4191.8,2.38557593]
[1758637734371,0.13402397,4192.0,4191.9,6.45655309]
[1758637734751,0.0006,4192.1,4192.0,2.38549618]
[1758637734963,0.13464346,4192.1,4192.0,2.38549618]
[1758637735570,0.13464346,4192.1,4192.0,3.08959618]
[1758637735973,0.13464346,4192.1,4192.0,2.62249618]
[1758637736169,0.13464346,4192.1,4192.0,3.62842295]
[1758637736341,0.13464346,4192.1,4192.0,17.89142295]
[1758637737481,0.35816977,4192.1,4192.0,17.89142295]
[1758637737849,0.35816977,4192.1,4192.0,21.96142295]
[1758637738455,0.13464346,4192.1,4192.0,21.96142295]
[1758637739362,0.35820063,4192.1,4192.0,21.96142295]
[1758637740600,0.13464346,4192.1,4192.0,21.96142295]
[1758637740801,0.35820063,4192.1,4192.0,21.96142295]
[1758637741204,0.13464346,4192.1,4192.0,22.19842295]
[1758637741557,0.13464346,4192.1,4192.0,22.78472295]
[1758637741772,0.0006,4192.1,4192.0,22.78472295]
[1758637743769,0.0006,4192.1,4192.0,18.01062295]
[1758637744171,0.13473187,4192.1,4192.0,22.07962295]
[1758637748003,0.13473187,4192.1,4192.0,19.69312677]
[1758637748213,0.13473187,4192.1,4192.0,22.07862295]
[1758637748374,0.13473187,4192.1,4192.0,22.31562295]
[1758637748571,0.13473187,4192.1,4192.0,22.07862295]
[1758637748783,0.13473187,4192.1,4192.0,7.81562295]
[1758637748983,0.0006,4192.1,4192.0,8.28272295]
[1758637749380,0.13463444,4192.1,4192.0,22.78272295]
[1758637752283,0.13463444,4192.1,4192.0,22.31562295]
[1758637752490,0.0006,4192.1,4192.0,22.74892295]
[1758637755406,0.0006,4192.1,4192.0,26.67192295]
[1758637755815,0.0006,4192.1,4192.0,30.46392295]
[1758637756387,0.0006,4192.1,4192.0,30.5595329]
[1758637757002,1e-08,4192.7,4192.6,3.17715479]
[1758637757288,0.2464,4194.0,4193.1,2.38487038]
[1758637757613,0.001,4194.1,4193.1,8.53871908]
[1758637757784,0.001,4194.1,4193.1,9.18887038]
[1758637758118,0.001,4194.1,4193.1,23.68887038]
[1758637758119,0.2474,4194.1,4193.1,23.68887038]
[1758637758489,0.2474,4193.8,4193.1,23.25557038]
[1758637758829,0.2474,4193.8,4193.1,26.13170798]
[1758637759024,0.0002,4193.2,4193.1,26.13170798]
[1758637760488,0.0002,4193.2,4193.1,25.69840798]
[1758637760822,0.0002,4193.2,4193.1,14.5]
[1758637761118,0.7191,4193.2,4193.1,20.95087038]
[1758637761296,0.7191,4193.2,4193.1,14.5]
[1758637761499,0.7191,4193.2,4193.1,18.566]
[1758637761696,0.85272593,4193.2,4193.1,18.566]
[1758637762101,0.7191,4193.2,4193.1,18.566]
[1758637762915,0.85274317,4193.2,4193.1,14.5]
[1758637764147,1.07549548,4193.2,4193.1,14.5]
[1758637767628,10.65248563,4193.2,4193.1,14.5]
[1758637768587,1.07549548,4193.2,4193.1,14.5]
[1758637768791,0.94185231,4193.2,4193.1,14.5]
[1758637769098,1.07553753,4193.2,4193.1,14.5]
[1758637771201,1.07553753,4193.2,4193.1,18.565]
[1758637771622,1.07552996,4193.2,4193.1,18.565]
[1758637771825,3.46034346,4193.2,4193.1,14.5]
[1758637772009,12.56131926,4193.2,4192.7,4.064]
[1758637772332,12.56131926,4193.2,4192.7,0.1192]
[1758637772333,2.38492725,4193.0,4192.7,0.1192]
[1758637772534,0.35642996,4192.9,4192.7,4.1832]
[1758637772745,0.13367765,4192.8,4192.7,4.064]
[1758637772907,0.13367765,4192.8,4192.7,4.1832]
[1758637773319,0.13367765,4192.8,4192.7,8.23111103]
[1758637774609,0.0002,4193.2,4193.0,2.38492221]
[1758637774808,0.13367097,4193.1,4193.0,2.38492221]
[1758637775003,0.13367097,4193.1,4193.0,7.12292221]
[1758637775221,0.13367097,4193.1,4193.0,7.24212221]
[1758637775422,0.13367097,4193.1,4193.0,8.30371919]
[1758637775624,0.13367097,4193.1,4193.0,7.87041919]
[1758637775905,0.13367097,4193.1,4193.0,5.48549698]
[1758637776139,0.13367097,4193.1,4193.0,7.62972423]
[1758637776452,0.35653922,4193.1,4193.0,5.24479698]
[1758637776741,0.35653922,4193.1,4193.0,0.1192]
[1758637776941,0.35653922,4193.1,4193.0,4.1832]
[1758637777146,0.35653922,4193.1,4193.0,2.50412725]
[1758637777308,0.35653922,4193.1,4193.0,6.56812725]
[1758637777806,0.13367097,4193.1,4193.0,7.24212725]
[1758637778031,0.13367097,4193.1,4193.0,8.30372412]
[1758637778234,0.35657411,4193.1,4193.0,8.30372412]
[1758637778539,0.13367097,4193.1,4193.0,8.30372412]
[1758637779239,0.35662066,4193.1,4193.0,5.24479687]
[1758637779438,0.35662066,4193.1,4193.0,7.62972412]
[1758637779867,0.13367097,4193.1,4193.0,8.30372412]
[1758637781175,0.35668187,4193.1,4193.0,7.87042412]
[1758637781556,0.13367097,4193.1,4193.0,7.87042412]
[1758637782268,0.13367097,4193.1,4193.0,8.31102412]
[1758637782444,0.0002,4193.2,4193.1,2.38487038]
[1758637782646,0.13408555,4193.2,4193.1,4.15741256]
[1758637782991,0.0002,4193.2,4193.1,4.39081256]
[1758637783284,0.13410303,4193.2,4193.1,18.45021256]
[1758637783460,0.13410303,4193.2,4193.1,18.86696386]
[1758637783877,0.13330303,4193.2,4193.1,18.86696386]
[1758637784239,0.001,4193.3,4193.2,2.3848135]
[1758637784440,0.001,4193.3,4193.2,8.8906511]
[1758637784681,0.001,4193.3,4193.2,6.4478135]
[1758637784979,0.001,4193.3,4193.2,16.8848135]
[1758637785290,0.001,4193.3,4193.2,20.9478135]
[1758637786537,0.001,4193.3,4193.2,21.1812135]
[1758637786974,0.001,4193.3,4193.2,21.6218135]
[1758637787143,0.001,4193.3,4193.2,24.0646511]
[1758637788176,0.001,4193.3,4193.2,24.1838511]
[1758637790983,0.001,4193.3,4193.2,24.1818511]
[1758637791384,0.001,4193.3,4193.2,14.6192]
[1758637791553,0.001,4193.3,4193.2,21.0650135]
[1758637792048,0.001,4193.3,4193.2,14.6192]
[1758637792253,0.001,4193.3,4193.2,17.0040135]
[1758637792453,0.001,4193.3,4193.2,14.6192]
[1758637792765,0.001,4193.3,4193.2,17.0040135]
[1758637793082,0.001,4193.3,4193.2,14.6192]
[1758637793281,0.715,4193.3,4193.2,14.6192]
[1758637793468,0.93804905,4193.3,4193.2,18.6802]
[1758637793670,0.715,4193.3,4193.2,18.6802]
[1758637795557,0.715,4193.3,4193.2,14.6192]